fUSD/lending_fUSD_20260528
["ID","MTS","AMOUNT","RATE_DAILY","PERIOD"]
[423184489,1779910259000,-155.0,0.00032691,30]
[423184492,1779910259000,-12691.57802001,0.00032699,2]
[423184447,1779910259000,-228.59045342,0.00032,120]
[423184467,1779910259000,-234.15749898,0.00032,2]
[423184468,1779910259000,-318.58,0.00032,7]
[423184481,1779910259000,-1176.0,0.00032685,30]
[423184466,1779910259000,-250.0,0.00032,2]
[423184464,1779910259000,-282.02695724,0.00032,120]
[423184445,1779910259000,-223.4879805,0.00032,120]
[423184441,1779910259000,-150.0,0.00031858,2]
[423184444,1779910259000,-1228.02891578,0.00032,120]
[423184446,1779910259000,-174.91040486,0.00032,120]
[423184443,1779910259000,-192.20112973,0.00032,120]
[423184451,1779910259000,-178.17649556,0.00032,120]
[423184491,1779910259000,-486.0,0.00032691,30]
[423184455,1779910259000,-207.28396013,0.00032,120]
[423184450,1779910259000,-204.70115116,0.00032,120]
[423184454,1779910259000,-200.6361202,0.00032,120]
[423184453,1779910259000,-180.73259399,0.00032,120]
[423184474,1779910259000,-525.0,0.00032233,2]
[423184458,1779910259000,-237.74569267,0.00032,120]
[423184456,1779910259000,-205.77743576,0.00032,120]
[423184459,1779910259000,-179.82120625,0.00032,120]
[423184461,1779910259000,-200.79846749,0.00032,120]
[423184460,1779910259000,-213.22249227,0.00032,120]
[423184462,1779910259000,-945.96681288,0.00032,120]
[423184463,1779910259000,-188.97933496,0.00032,120]
[423184475,1779910259000,-1272.0,0.00032233,2]
[423184465,1779910259000,-177.15756749,0.00032,120]
[423184457,1779910259000,-167.31995719,0.00032,120]
[423184557,1779910260000,-160.0,0.00033,30]
[423184541,1779910260000,-1365.38617582,0.00032877,2]
[423184551,1779910260000,-205.77743576,0.00033,120]
[423184556,1779910260000,-250.0,0.00033,2]
[423184552,1779910260000,-200.79846749,0.00033,120]
[423184553,1779910260000,-945.96681288,0.00033,120]
[423184543,1779910260000,-1228.02891578,0.00033,120]
[423184549,1779910260000,-200.6361202,0.00033,120]
[423184559,1779910260000,-151.0,0.00033,7]
[423184548,1779910260000,-180.73259399,0.00033,120]
[423184560,1779910260000,-151.0,0.00033,7]
[423184550,1779910260000,-207.28396013,0.00033,120]
[423184555,1779910260000,-46355.80366583,0.00033,2]
[423184571,1779910260000,-150.0,0.00033115,7]
[423184558,1779910260000,-151.0,0.00033,7]
[423184572,1779910260000,-220.76085823,0.00033115,7]
[423184562,1779910260000,-1013.441333,0.00033,7]
[423184573,1779910260000,-150.0,0.00033115,7]
[423184564,1779910260000,-1013.441333,0.00033,7]
[423184561,1779910260000,-1013.441333,0.00033,7]
[423184568,1779910260000,-564.58262352,0.00033052,3]
[423184563,1779910260000,-1013.441333,0.00033,7]
[423184566,1779910260000,-500.0,0.00033002,30]
[423184565,1779910260000,-208.97895572,0.00033,30]
[423184570,1779910260000,-253.74994461,0.00033115,7]
[423184569,1779910260000,-150.0,0.00033115,30]
[423184542,1779910260000,-192.20112973,0.00033,120]
[423184554,1779910260000,-282.02695724,0.00033,120]
[423184544,1779910260000,-174.91040486,0.00033,120]
[423184519,1779910260000,-1349.0,0.00032877,2]
[423184545,1779910260000,-198.52157595,0.00033,120]
[423184523,1779910260000,-1349.0,0.00032877,2]
[423184517,1779910260000,-250.977678,0.00032877,7]
[423184516,1779910260000,-250.977678,0.00032877,7]
[423184515,1779910260000,-250.977678,0.00032877,7]
[423184522,1779910260000,-1349.0,0.00032877,2]
[423184574,1779910260000,-150.0,0.00033115,7]
[423184518,1779910260000,-1349.0,0.00032877,2]
[423184521,1779910260000,-1349.0,0.00032877,2]
[423184520,1779910260000,-1349.0,0.00032877,2]
[423184524,1779910260000,-1349.0,0.00032877,2]
[423184527,1779910260000,-1349.0,0.00032877,2]
[423184526,1779910260000,-1349.0,0.00032877,2]
[423184528,1779910260000,-1349.0,0.00032877,2]
[423184525,1779910260000,-1349.0,0.00032877,2]
[423184536,1779910260000,-1349.0,0.00032877,2]
[423184529,1779910260000,-1349.0,0.00032877,2]
[423184535,1779910260000,-1349.0,0.00032877,2]
[423184530,1779910260000,-1349.0,0.00032877,2]
[423184531,1779910260000,-1349.0,0.00032877,2]
[423184534,1779910260000,-1349.0,0.00032877,2]
[423184532,1779910260000,-1349.0,0.00032877,2]
[423184533,1779910260000,-1349.0,0.00032877,2]
[423184538,1779910260000,-1349.0,0.00032877,2]
[423184537,1779910260000,-1349.0,0.00032877,2]
[423184539,1779910260000,-1349.0,0.00032877,2]
[423184547,1779910260000,-185.88478102,0.00033,120]
[423184540,1779910260000,-1349.0,0.00032877,2]
[423184546,1779910260000,-283.91208686,0.00033,120]
[423184576,1779910260000,-150.0,0.00033115,7]
[423184567,1779910260000,-350.0,0.00033014,5]
[423184579,1779910260000,-150.0,0.00033115,7]
[423184607,1779910260000,-151.0,0.00033514,7]
[423184609,1779910260000,-760.010803,0.00033514,7]
[423184613,1779910260000,-156.683338,0.00033514,7]
[423184624,1779910260000,-220.0,0.00033606,2]
[423184612,1779910260000,-760.010798,0.00033514,7]
[423184614,1779910260000,-339387.9136879,0.00033514,2]
[423184623,1779910260000,-150.0,0.00033606,2]
[423184616,1779910260000,-150.0,0.00033528,7]
[423184615,1779910260000,-150.0,0.00033524,7]
[423184617,1779910260000,-693.39197629,0.00033544,2]
[423184618,1779910260000,-864.78058953,0.00033544,2]
[423184622,1779910260000,-11438.18007928,0.000336,120]
[423184621,1779910260000,-150.0,0.0003357,7]
[423184608,1779910260000,-151.0,0.00033514,7]
[423184620,1779910260000,-150.0,0.00033557,7]
[423184625,1779910260000,-289.487,0.00033606,2]
[423184631,1779910260000,-150.0,0.00033611,7]
[423184632,1779910260000,-150.0,0.00033641,7]
[423184629,1779910260000,-150.124,0.00033606,2]
[423184626,1779910260000,-167.187,0.00033606,2]
[423184628,1779910260000,-150.0,0.00033606,2]
[423184630,1779910260000,-150.0,0.00033606,2]
[423184627,1779910260000,-150.0,0.00033606,2]
[423184635,1779910260000,-151.0,0.00033673,7]
[423184633,1779910260000,-150.0,0.00033653,7]
[423184634,1779910260000,-11768.9319941,0.00033673,2]
[423184577,1779910260000,-150.0,0.00033115,7]
[423184636,1779910260000,-485.487886,0.00033673,7]
[423184619,1779910260000,-150.0,0.00033548,7]
[423184606,1779910260000,-151.0,0.00033514,7]
[423184637,1779910260000,-485.487886,0.00033673,7]
[423184604,1779910260000,-222.392196,0.00033511,14]
[423184602,1779910260000,-150.0,0.00033451,2]
[423184578,1779910260000,-150.0,0.00033115,7]
[423184582,1779910260000,-150.0,0.00033156,7]
[423184584,1779910260000,-150.0,0.00033239,7]
[423184581,1779910260000,-150.0,0.00033115,7]
[423184580,1779910260000,-150.0,0.00033115,7]
[423184585,1779910260000,-828.23,0.0003324,7]
[423184583,1779910260000,-150.0,0.00033198,7]
[423184587,1779910260000,-1091.90960822,0.0003325,66]
[423184589,1779910260000,-150.0,0.0003328,7]
[423184598,1779910260000,-150.0,0.00033409,7]
[423184597,1779910260000,-150.0,0.00033404,7]
[423184594,1779910260000,-150.0,0.00033363,7]
[423184596,1779910260000,-1500.0,0.000334,7]
[423184575,1779910260000,-150.0,0.00033115,7]
[423184591,1779910260000,-150.0,0.00033322,7]
[423184603,1779910260000,-150.0,0.00033487,7]
[423184605,1779910260000,-500.0,0.00033513,30]
[423184601,1779910260000,-150.0,0.00033446,7]
[423184611,1779910260000,-760.010803,0.00033514,7]
[423184590,1779910260000,-150.0,0.00033319,7]
[423184599,1779910260000,-3621.01003554,0.00033423,2]
[423184610,1779910260000,-760.010803,0.00033514,7]
[423184592,1779910260000,-150.0,0.00033332,7]
[423184586,1779910260000,-1091.90960822,0.0003325,66]
[423184593,1779910260000,-5941.69735554,0.00033336,2]
[423184588,1779910260000,-150.0,0.00033262,7]
[423184595,1779910260000,-150.0,0.00033378,7]
[423184600,1779910260000,-317.79088579,0.00033423,2]
[423184673,1779910261000,-519.0,0.00033691,30]
[423184674,1779910261000,-155.0,0.00033691,30]
[423184682,1779910261000,-500.0,0.00033744,120]
[423184676,1779910261000,-486.0,0.00033691,30]
[423184664,1779910261000,-250.977678,0.00033689,7]
[423184681,1779910261000,-150.0,0.00033735,7]
[423184680,1779910261000,-150.0,0.00033728,7]
[423184675,1779910261000,-206.0,0.00033691,30]
[423184679,1779910261000,-150.0,0.00033728,30]
[423184668,1779910261000,-134724.5281581,0.00033689,2]
[423184683,1779910261000,-501.0,0.00033753,11]
[423184672,1779910261000,-305.0,0.00033691,30]
[423184687,1779910261000,-150.69734918,0.000338,120]
[423184678,1779910261000,-150.0,0.00033704,7]
[423184671,1779910261000,-295.0,0.00033691,30]
[423184686,1779910261000,-228.53078202,0.00033781,7]
[423184684,1779910261000,-150.0,0.00033764,7]
[423184685,1779910261000,-150.0,0.00033777,7]
[423184691,1779910261000,-1228.02891578,0.000339,120]
[423184688,1779910261000,-150.0,0.00033818,7]
[423184689,1779910261000,-150.0,0.00033851,7]
[423184694,1779910261000,-207.28396013,0.000339,120]
[423184693,1779910261000,-185.88478102,0.000339,120]
[423184690,1779910261000,-150.0,0.00033859,7]
[423184666,1779910261000,-250.977678,0.00033689,7]
[423184695,1779910261000,-205.77743576,0.000339,120]
[423184677,1779910261000,-150.0,0.00033694,7]
[423184665,1779910261000,-250.977678,0.00033689,7]
[423184651,1779910261000,-1013.441325,0.00033689,7]
[423184669,1779910261000,-334.0,0.00033691,30]
[423184696,1779910261000,-200.79846749,0.000339,120]
[423184638,1779910261000,-485.487886,0.00033673,7]
[423184639,1779910261000,-485.487886,0.00033673,7]
[423184641,1779910261000,-275.0,0.00033685,30]
[423184643,1779910261000,-286.0,0.00033685,30]
[423184644,1779910261000,-158.0,0.00033685,30]
[423184640,1779910261000,-301.0,0.00033685,30]
[423184645,1779910261000,-151.0,0.00033689,7]
[423184642,1779910261000,-1176.0,0.00033685,30]
[423184649,1779910261000,-1013.441333,0.00033689,7]
[423184646,1779910261000,-151.0,0.00033689,7]
[423184657,1779910261000,-322.693275,0.00033689,7]
[423184658,1779910261000,-322.693275,0.00033689,7]
[423184647,1779910261000,-151.0,0.00033689,7]
[423184648,1779910261000,-1013.441333,0.00033689,7]
[423184652,1779910261000,-1491.72735,0.00033689,7]
[423184656,1779910261000,-322.693275,0.00033689,7]
[423184650,1779910261000,-1013.441333,0.00033689,7]
[423184655,1779910261000,-1491.727357,0.00033689,7]
[423184653,1779910261000,-1491.72735,0.00033689,7]
[423184654,1779910261000,-1491.72735,0.00033689,7]
[423184659,1779910261000,-322.693279,0.00033689,7]
[423184662,1779910261000,-516.542496,0.00033689,7]
[423184660,1779910261000,-516.542496,0.00033689,7]
[423184661,1779910261000,-516.542496,0.00033689,7]
[423184667,1779910261000,-250.977682,0.00033689,7]
[423184670,1779910261000,-318.0,0.00033691,30]
[423184663,1779910261000,-516.54250297,0.00033689,7]
[423184698,1779910261000,-282.02695724,0.000339,120]
[423184692,1779910261000,-283.91208686,0.000339,120]
[423184697,1779910261000,-945.96681288,0.000339,120]
[423184732,1779910261000,-200.0,0.00034247,90]
[423184724,1779910261000,-827.7,0.00034182,7]
[423184734,1779910261000,-200.0,0.00034247,90]
[423184733,1779910261000,-200.0,0.00034247,90]
[423184735,1779910261000,-200.0,0.00034247,90]
[423184737,1779910261000,-200.0,0.00034247,90]
[423184746,1779910261000,-151.93242,0.00034247,90]
[423184736,1779910261000,-200.0,0.00034247,90]
[423184745,1779910261000,-200.0,0.00034247,90]
[423184742,1779910261000,-200.0,0.00034247,90]
[423184738,1779910261000,-200.0,0.00034247,90]
[423184744,1779910261000,-200.0,0.00034247,90]
[423184739,1779910261000,-200.0,0.00034247,90]
[423184740,1779910261000,-200.0,0.00034247,90]
[423184743,1779910261000,-200.0,0.00034247,90]
[423184741,1779910261000,-200.0,0.00034247,90]
[423184758,1779910261000,-150.0,0.00034414,7]
[423184748,1779910261000,-150.0,0.00034273,7]
[423184751,1779910261000,-1110.92,0.000343,120]
[423184752,1779910261000,-150.0,0.00034314,7]
[423184749,1779910261000,-150.0,0.00034292,7]
[423184754,1779910261000,-150.0,0.00034342,7]
[423184750,1779910261000,-216.77,0.000343,120]
[423184756,1779910261000,-150.0,0.00034355,7]
[423184755,1779910261000,-150.0,0.00034342,7]
[423184753,1779910261000,-150.0,0.00034342,30]
[423184700,1779910261000,-150.0,0.00033904,7]
[423184731,1779910261000,-200.0,0.00034247,90]
[423184730,1779910261000,-200.0,0.00034247,90]
[423184747,1779910261000,-2000.0,0.00034247,30]
[423184727,1779910261000,-150.0,0.00034197,7]
[423184728,1779910261000,-150.0,0.00034231,7]
[423184699,1779910261000,-150.0,0.00033901,7]
[423184757,1779910261000,-150.0,0.00034397,7]
[423184709,1779910261000,-150.0,0.00034035,7]
[423184708,1779910261000,-150.0,0.00034025,7]
[423184703,1779910261000,-350.0,0.00033973,5]
[423184704,1779910261000,-150.0,0.00033981,7]
[423184707,1779910261000,-250.0,0.00034,2]
[423184702,1779910261000,-150.0,0.00033942,7]
[423184706,1779910261000,-150.0,0.00033998,7]
[423184705,1779910261000,-150.0,0.00033983,7]
[423184711,1779910261000,-500.0,0.0003406,30]
[423184721,1779910261000,-150.0,0.00034145,7]
[423184712,1779910261000,-500.0,0.0003406,30]
[423184701,1779910261000,-150.0,0.00033933,7]
[423184717,1779910261000,-150.0,0.00034066,7]
[423184714,1779910261000,-500.0,0.0003406,30]
[423184723,1779910261000,-150.0,0.00034166,7]
[423184726,1779910261000,-150.0,0.0003419,7]
[423184716,1779910261000,-166.65,0.0003406,30]
[423184720,1779910261000,-150.0,0.00034137,7]
[423184725,1779910261000,-167.16450666,0.00034186,2]
[423184710,1779910261000,-500.0,0.0003406,30]
[423184713,1779910261000,-500.0,0.0003406,30]
[423184718,1779910261000,-152.0,0.00034093,5]
[423184729,1779910261000,-500.0,0.00034246,30]
[423184719,1779910261000,-150.0,0.00034107,7]
[423184722,1779910261000,-150.0,0.00034149,7]
[423184715,1779910261000,-466.31,0.0003406,30]
[423184784,1779910262000,-519.0,0.00034691,30]
[423184809,1779910262000,-330.0,0.00034975,37]
[423184787,1779910262000,-486.0,0.00034691,30]
[423184790,1779910262000,-150.0,0.00034727,7]
[423184791,1779910262000,-150.0,0.00034734,7]
[423184792,1779910262000,-150.0,0.0003475,7]
[423184794,1779910262000,-1626.1165082,0.00034783,77]
[423184793,1779910262000,-150.0,0.00034769,7]
[423184798,1779910262000,-150.0,0.00034847,7]
[423184797,1779910262000,-150.0,0.0003481,7]
[423184796,1779910262000,-1500.0,0.00034795,2]
[423184806,1779910262000,-150.0,0.00034955,7]
[423184799,1779910262000,-150.0,0.00034851,7]
[423184800,1779910262000,-150.0,0.00034881,7]
[423184807,1779910262000,-150.0,0.00034955,7]
[423184804,1779910262000,-150.0,0.00034955,30]
[423184805,1779910262000,-150.0,0.00034955,7]
[423184801,1779910262000,-150.0,0.00034893,7]
[423184802,1779910262000,-12691.57802001,0.000349,2]
[423184803,1779910262000,-150.0,0.00034934,7]
[423184810,1779910262000,-150.0,0.00034975,7]
[423184814,1779910262000,-4370.74904221,0.00035,7]
[423184812,1779910262000,-1228.02891578,0.00035,120]
[423184786,1779910262000,-206.0,0.00034691,30]
[423184808,1779910262000,-150.0,0.00034955,7]
[423184788,1779910262000,-150.0,0.00034692,7]
[423184771,1779910262000,-150.0,0.00034603,7]
[423184795,1779910262000,-1626.1165082,0.00034783,77]
[423184811,1779910262000,-1092.26222106,0.00034999,30]
[423184759,1779910262000,-150.0,0.00034429,7]
[423184762,1779910262000,-245.24347086,0.00034453,2]
[423184761,1779910262000,-150.0,0.0003444,7]
[423184760,1779910262000,-150.0,0.00034438,7]
[423184769,1779910262000,-150.0,0.00034562,7]
[423184768,1779910262000,-150.0,0.00034546,7]
[423184763,1779910262000,-150.0,0.00034479,7]
[423184770,1779910262000,-150.0,0.00034587,7]
[423184766,1779910262000,-175.78,0.00034544,60]
[423184764,1779910262000,-150.0,0.00034521,7]
[423184767,1779910262000,-293.75,0.00034544,60]
[423184789,1779910262000,-501.0,0.00034717,12]
[423184765,1779910262000,-502.94,0.00034541,14]
[423184778,1779910262000,-158.0,0.00034685,30]
[423184782,1779910262000,-295.0,0.00034691,30]
[423184780,1779910262000,-334.0,0.00034691,30]
[423184779,1779910262000,-150.0,0.00034686,7]
[423184772,1779910262000,-150.0,0.0003463,7]
[423184781,1779910262000,-318.0,0.00034691,30]
[423184773,1779910262000,-150.0,0.00034645,7]
[423184777,1779910262000,-286.0,0.00034685,30]
[423184783,1779910262000,-305.0,0.00034691,30]
[423184776,1779910262000,-1176.0,0.00034685,30]
[423184774,1779910262000,-301.0,0.00034685,30]
[423184785,1779910262000,-155.0,0.00034691,30]
[423184775,1779910262000,-275.0,0.00034685,30]
[423184815,1779910262000,-283.91208686,0.00035,120]
[423184813,1779910262000,-35214.51766092,0.00035,3]
[423184816,1779910262000,-185.88478102,0.00035,120]
[423184843,1779910262000,-150.0,0.00035141,7]
[423184849,1779910262000,-525.0,0.00035233,2]
[423184853,1779910262000,-928.0,0.00035233,2]
[423184861,1779910262000,-480.0,0.00035386,30]
[423184860,1779910262000,-150.0,0.00035364,7]
[423184852,1779910262000,-1356.0,0.00035233,2]
[423184850,1779910262000,-1272.0,0.00035233,2]
[423184851,1779910262000,-1225.0,0.00035233,2]
[423184854,1779910262000,-150.0,0.00035265,7]
[423184856,1779910262000,-558.20397708,0.00035297,2]
[423184857,1779910262000,-150.0,0.00035306,7]
[423184855,1779910262000,-150.0,0.00035279,7]
[423184859,1779910262000,-150.0,0.00035348,7]
[423184862,1779910262000,-150.0,0.00035389,7]
[423184865,1779910262000,-300.0,0.0003543,2]
[423184864,1779910262000,-204.52,0.00035429,120]
[423184863,1779910262000,-151.0,0.00035428,7]
[423184866,1779910262000,-300.0,0.0003543,2]
[423184867,1779910262000,-300.0,0.0003543,2]
[423184870,1779910262000,-300.0,0.0003543,2]
[423184869,1779910262000,-300.0,0.0003543,2]
[423184871,1779910262000,-449.17313882,0.0003543,2]
[423184868,1779910262000,-300.0,0.0003543,2]
[423184872,1779910262000,-300.0,0.0003543,2]
[423184817,1779910262000,-207.28396013,0.00035,120]
[423184848,1779910262000,-150.0,0.00035224,7]
[423184836,1779910262000,-150.0,0.00035028,7]
[423184858,1779910262000,-150.0,0.00035323,7]
[423184847,1779910262000,-150.0,0.00035218,7]
[423184819,1779910262000,-945.96681288,0.00035,120]
[423184846,1779910262000,-150.0,0.00035182,7]
[423184823,1779910262000,-250.0,0.00035,2]
[423184820,1779910262000,-282.02695724,0.00035,120]
[423184818,1779910262000,-205.77743576,0.00035,120]
[423184821,1779910262000,-183.27090891,0.00035,2]
[423184822,1779910262000,-5001.62399452,0.00035,30]
[423184834,1779910262000,-319.25,0.00035,7]
[423184826,1779910262000,-1000.0,0.00035,7]
[423184835,1779910262000,-150.0,0.00035017,7]
[423184829,1779910262000,-151.0,0.00035,7]
[423184824,1779910262000,-377.36,0.00035,30]
[423184828,1779910262000,-155.419164,0.00035,7]
[423184825,1779910262000,-8000.0,0.00035,7]
[423184832,1779910262000,-151.0,0.00035,7]
[423184840,1779910262000,-150.0,0.00035099,7]
[423184839,1779910262000,-2743.0,0.00035094,2]
[423184837,1779910262000,-150.0,0.00035058,7]
[423184844,1779910262000,-150.0,0.00035159,7]
[423184842,1779910262000,-161.84,0.0003513,30]
[423184841,1779910262000,-150.0,0.00035124,2]
[423184845,1779910262000,-150.0,0.00035176,7]
[423184830,1779910262000,-151.0,0.00035,7]
[423184833,1779910262000,-199.66518691,0.00035,30]
[423184831,1779910262000,-151.0,0.00035,7]
[423184827,1779910262000,-151.0,0.00035,7]
[423184838,1779910262000,-150.0,0.00035063,7]
[423184922,1779910263000,-464.48677942,0.0003543,2]
[423184912,1779910263000,-310.02493426,0.0003543,2]
[423184918,1779910263000,-300.0,0.0003543,2]
[423184919,1779910263000,-594.79850986,0.0003543,2]
[423184914,1779910263000,-300.0,0.0003543,2]
[423184913,1779910263000,-300.0,0.0003543,2]
[423184905,1779910263000,-300.0,0.0003543,2]
[423184902,1779910263000,-527.62572404,0.0003543,2]
[423184904,1779910263000,-300.0,0.0003543,2]
[423184909,1779910263000,-1800.09388364,0.0003543,2]
[423184908,1779910263000,-950.32029804,0.0003543,2]
[423184915,1779910263000,-1634.44392223,0.0003543,2]
[423184907,1779910263000,-865.6208675,0.0003543,2]
[423184916,1779910263000,-300.0,0.0003543,2]
[423184928,1779910263000,-300.0,0.0003543,2]
[423184921,1779910263000,-300.0,0.0003543,2]
[423184920,1779910263000,-300.0,0.0003543,2]
[423184923,1779910263000,-300.0,0.0003543,2]
[423184924,1779910263000,-578.28315025,0.0003543,2]
[423184926,1779910263000,-452.52893397,0.0003543,2]
[423184936,1779910263000,-300.0,0.0003543,2]
[423184929,1779910263000,-300.0,0.0003543,2]
[423184932,1779910263000,-310.28230408,0.0003543,2]
[423184933,1779910263000,-300.0,0.0003543,2]
[423184931,1779910263000,-484.76763572,0.0003543,2]
[423184927,1779910263000,-300.0,0.0003543,2]
[423184925,1779910263000,-300.0,0.0003543,2]
[423184935,1779910263000,-300.0,0.0003543,2]
[423184906,1779910263000,-300.0,0.0003543,2]
[423184917,1779910263000,-300.0,0.0003543,2]
[423184903,1779910263000,-372.88318182,0.0003543,2]
[423184876,1779910263000,-493.38669858,0.0003543,2]
[423184911,1779910263000,-1148.83589152,0.0003543,2]
[423184873,1779910263000,-300.0,0.0003543,2]
[423184875,1779910263000,-300.0,0.0003543,2]
[423184874,1779910263000,-300.0,0.0003543,2]
[423184885,1779910263000,-300.0,0.0003543,2]
[423184878,1779910263000,-300.0,0.0003543,2]
[423184879,1779910263000,-300.0,0.0003543,2]
[423184881,1779910263000,-605.31118564,0.0003543,2]
[423184877,1779910263000,-300.0,0.0003543,2]
[423184930,1779910263000,-300.0,0.0003543,2]
[423184880,1779910263000,-300.0,0.0003543,2]
[423184882,1779910263000,-300.0,0.0003543,2]
[423184884,1779910263000,-300.0,0.0003543,2]
[423184883,1779910263000,-300.0,0.0003543,2]
[423184886,1779910263000,-528.48327171,0.0003543,2]
[423184890,1779910263000,-302.21937029,0.0003543,2]
[423184889,1779910263000,-300.0,0.0003543,2]
[423184888,1779910263000,-727.07827244,0.0003543,2]
[423184892,1779910263000,-300.0,0.0003543,2]
[423184891,1779910263000,-300.0,0.0003543,2]
[423184894,1779910263000,-300.0,0.0003543,2]
[423184895,1779910263000,-300.0,0.0003543,2]
[423184887,1779910263000,-1068.40163352,0.0003543,2]
[423184897,1779910263000,-300.0,0.0003543,2]
[423184896,1779910263000,-300.0,0.0003543,2]
[423184893,1779910263000,-300.99795142,0.0003543,2]
[423184898,1779910263000,-300.0,0.0003543,2]
[423184899,1779910263000,-300.0,0.0003543,2]
[423184900,1779910263000,-1263.96825586,0.0003543,2]
[423184901,1779910263000,-344.45437934,0.0003543,2]
[423184910,1779910263000,-300.0,0.0003543,2]
[423184937,1779910263000,-300.0,0.0003543,2]
[423184997,1779910263000,-300.0,0.0003543,2]
[423184939,1779910263000,-300.0,0.0003543,2]
[423184965,1779910263000,-344.45437934,0.0003543,2]
[423184971,1779910263000,-950.32029804,0.0003543,2]
[423184974,1779910263000,-1148.83589152,0.0003543,2]
[423184970,1779910263000,-865.6208675,0.0003543,2]
[423184973,1779910263000,-300.0,0.0003543,2]
[423184975,1779910263000,-310.02493426,0.0003543,2]
[423184979,1779910263000,-300.0,0.0003543,2]
[423184991,1779910263000,-300.0,0.0003543,2]
[423184981,1779910263000,-300.0,0.0003543,2]
[423184989,1779910263000,-300.0,0.0003543,2]
[423184980,1779910263000,-300.0,0.0003543,2]
[423184982,1779910263000,-594.79850986,0.0003543,2]
[423184990,1779910263000,-452.52893397,0.0003543,2]
[423184978,1779910263000,-1634.44392223,0.0003543,2]
[423184983,1779910263000,-300.0,0.0003543,2]
[423184984,1779910263000,-379.1644297,0.0003543,2]
[423184988,1779910263000,-300.0,0.0003543,2]
[423184985,1779910263000,-464.48677942,0.0003543,2]
[423184986,1779910263000,-300.0,0.0003543,2]
[423184987,1779910263000,-578.28315025,0.0003543,2]
[423184996,1779910263000,-310.28230408,0.0003543,2]
[423184995,1779910263000,-484.76763572,0.0003543,2]
[423184994,1779910263000,-300.0,0.0003543,2]
[423184992,1779910263000,-300.0,0.0003543,2]
[423184993,1779910263000,-466.72874829,0.0003543,2]
[423184998,1779910263000,-300.7543397,0.0003543,2]
[423184999,1779910263000,-300.0,0.0003543,2]
[423185000,1779910263000,-593.12439472,0.0003543,2]
[423184934,1779910263000,-1096.2926835,0.0003543,2]
[423184972,1779910263000,-1800.09388364,0.0003543,2]
[423184969,1779910263000,-300.0,0.0003543,2]
[423185001,1779910263000,-1096.2926835,0.0003543,2]
[423184966,1779910263000,-527.62572404,0.0003543,2]
[423184941,1779910263000,-300.0,0.0003543,2]
[423184938,1779910263000,-300.0,0.0003543,2]
[423184940,1779910263000,-300.0,0.0003543,2]
[423184949,1779910263000,-300.0,0.0003543,2]
[423184950,1779910263000,-528.48327171,0.0003543,2]
[423184942,1779910263000,-493.38669858,0.0003543,2]
[423184948,1779910263000,-300.0,0.0003543,2]
[423184947,1779910263000,-300.0,0.0003543,2]
[423184967,1779910263000,-300.0,0.0003543,2]
[423184943,1779910263000,-376.20103626,0.0003543,2]
[423184946,1779910263000,-605.31118564,0.0003543,2]
[423184944,1779910263000,-300.0,0.0003543,2]
[423184951,1779910263000,-1068.40163352,0.0003543,2]